[Event "FISCA Open 2022"]
[Site "Cap Aurora"]
[Date "2022.06.27"]
[Round "7.1"]
[White "Petre, Nad-Titus"]
[Black "Coca, Cristi-Iulian"]
[Result "1-0"]
[ECO "B42"]
[WhiteElo "2297"]
[BlackElo "2174"]
[Annotator "TA"]
[PlyCount "63"]
[EventDate "2022.06.22"]
[EventType "swiss"]
[EventCountry "ROU"]
[SourceTitle "playchess.com"]
[Source "ChessBase"]
[SourceQuality "1"]
[TimeControl "5400+30"]

{[%evp 13,63,28,31,22,26,28,48,27,23,24,29,22,41,40,41,45,39,35,31,19,15,16,27,27,43,45,53,54,113,73,85,73,120,103,157,112,151,147,387,383,383,391,386,389,378,264,789,782,780,769,680,664]} 1. e4 {[%emt 0:00:27]} c5 {[%emt 0:00:23]} 2. Nf3 {[%emt 0:00:07]} e6 {[%emt 0:00:24]} 3. d4 {[%emt 0:00:06]} cxd4 {[%emt 0:00:01]} 4. Nxd4 {[%emt 0:00:07]} a6 {[%emt 0:00:01]} 5. Bd3 {[%emt 0:00:06]} Bc5 {[%emt 0:00:03]} 6. Nb3 {[%emt 0:01:10]} Ba7 {[%emt 0:00:11]} 7. O-O {[%emt 0:04:45]} Ne7 {[%emt 0:00:43]} 8. c4 {[%emt 0:08:58] B42: Sicilian: Kan Variation: 5 Bd3.} Nbc6 {[%emt 0:06:34]} 9. Nc3 {[%emt 0:04:25]} O-O {[%emt 0:04:51]} 10. Qe2 {[%emt 0:05:38] White is slightly better.} Nd4 {[%emt 0:12:28]} 11. Nxd4 {[%emt 0:02:35]} Bxd4 {[%emt 0:00:11]} 12. Be3 {[%emt 0:01:22] [#]} (12. Bg5 {feels hotter.} d6 13. Rfd1 Qc7 14. Rac1) 12... Bxe3 $146 {[%emt 0:23:03]} ({Predecessor:} 12... Nc6 13. Bxd4 Nxd4 14. Qe3 e5 15. f4 d6 16. f5 f6 17. Ne2 Nxe2+ 18. Bxe2 Qc7 {1-0 (46) Lebled,P (2388)-Moes Joaquim,C (1965) ICCF email 2018}) 13. Qxe3 {[%emt 0:02:05]} ({Reject} 13. fxe3 Nc6 $11) 13... e5 {[%emt 0:06:34]} 14. Rfd1 {[%emt 0:12:21]} d6 {[%emt 0:02:21]} 15. Rd2 {[%emt 0:01:21]} Be6 {[%emt 0:01:22]} 16. Bf1 {[%emt 0:04:45]} Qc7 {[%emt 0:01:53]} 17. b3 {[%emt 0:04:17]} Rad8 {[%emt 0:11:35]} 18. Rad1 {[%emt 0:02:51]} Rd7 {[%emt 0:03:36]} 19. g3 {[%emt 0:03:37]} Nc6 {[%emt 0:03:38]} 20. f4 {[%emt 0:05:38] [#] Hoping for f5.} f5 {[%emt 0:05:10]} (20... f6 $14) 21. exf5 {[%emt 0:02:04]} Bxf5 {[%emt 0:00:56]} 22. Bg2 {[%emt 0:03:50]} Nd4 {[%emt 0:00:56]} (22... Qd8 $142) 23. Nd5 {[%emt 0:00:30]} Qc5 {[%emt 0:01:02]} (23... Qb8 $142) 24. Kh1 {[%emt 0:03:31]} ({Don't play} 24. fxe5 dxe5 25. b4 Qd6 $16) 24... Bg4 {[%emt 0:02:22]} 25. Re1 {[%emt 0:03:15] h3 is the strong threat.} Rdf7 $2 {[%emt 0:02:01] Loses the game.} (25... Qa5 $16 {was called for.} 26. b4 (26. fxe5 dxe5 27. b4 Qd8 $14) 26... Qd8) 26. h3 $18 {[%emt 0:02:48]} Bc8 {[%emt 0:07:56]} 27. fxe5 {[%emt 0:02:11]} dxe5 {[%emt 0:00:01]} 28. Qxe5 {[%emt 0:00:32] [#] Threatens to win with Nf6+.} Ne6 {[%emt 0:00:01]} 29. Qe3 {[%emt 0:01:18]} Qa5 $2 {[%emt 0:01:15]} (29... Qxe3 30. Rxe3 b5) 30. b4 {[%emt 0:01:15] White is clearly winning.} Qa4 {[%emt 0:00:01]} 31. a3 {[%emt 0:00:30]} Qe8 {[%emt 0:01:26]} 32. Nb6 {[%emt 0:01:50] Weighted Error Value: White=0.13 (very precise) /Black=0.31} 1-0

[Event "FISCA Open 2022"]
[Site "Cap Aurora"]
[Date "2022.06.27"]
[Round "7.2"]
[White "Ardeleanu, Alin"]
[Black "Prisacaru, Stefan-Emilian"]
[Result "1/2-1/2"]
[ECO "B17"]
[WhiteElo "2290"]
[BlackElo "1937"]
[Annotator "TA"]
[PlyCount "52"]
[EventDate "2022.06.22"]
[EventType "swiss"]
[EventCountry "ROU"]
[SourceTitle "playchess.com"]
[Source "ChessBase"]
[SourceQuality "1"]
[TimeControl "5400+30"]

{[%evp 22,52,28,30,45,31,27,28,31,16,13,8,8,8,12,8,10,10,10,4,15,5,5,0,7,7,17,9,24,15,24,20,64]} 1. e4 {[%emt 0:00:02]} c6 {[%emt 0:00:25]} 2. Nc3 {[%emt 0:00:27]} d5 {[%emt 0:00:25]} 3. Nf3 {[%emt 0:03:40]} Bg4 {[%emt 0:01:50]} 4. d4 {[%emt 0:01:35]} e6 {[%emt 0:02:46]} 5. Bd3 {[%emt 0:04:28]} Nf6 {[%emt 0:05:03]} 6. O-O {[%emt 0:05:21]} dxe4 {[%emt 0:05:34]} 7. Nxe4 {[%emt 0:00:21]} Nxe4 {[%emt 0:00:44]} 8. Bxe4 {[%emt 0:00:05]} Nd7 {[%emt 0:00:04]} 9. h3 {[%emt 0:01:14]} Bh5 {[%emt 0:00:30]} 10. Bd3 {[%emt 0:00:30][%cal Be4d3,Bd3e2,Be2f3][%mdl 32]} Nf6 {[%emt 0:00:30]} 11. Be2 {[%emt 0:00:30]} Bxf3 {[%emt 0:00:30]} 12. Bxf3 {[%emt 0:00:30]} Qc7 {[%emt 0:00:30] B17: Caro-Kann: Modern Line (4...Nd7).} 13. c3 {[%emt 0:00:30]} Be7 {[%emt 0:00:30] [#]} 14. g3 $146 {[%emt 0:21:04]} ({Predecessor:} 14. b3 O-O 15. Bb2 Rfd8 16. Qc2 a5 17. c4 a4 18. Bc3 Ne8 19. b4 Bf6 20. Rfd1 Nd6 21. Rd2 b5 22. c5 {1-0 (39) Munkhzul,T (2386)-Wu,X (2189) Changsha 2019}) 14... O-O {[%emt 0:23:08] White has an edge.} 15. Bf4 {[%emt 0:00:19]} Bd6 {[%emt 0:00:30]} 16. Bxd6 {[%emt 0:02:18]} Qxd6 {[%emt 0:00:04]} 17. Re1 {[%emt 0:02:58]} Rfe8 {[%emt 0:02:24]} 18. Qb3 {[%emt 0:06:01]} Qc7 {[%emt 0:02:53]} 19. Re5 {[%emt 0:01:08]} Rad8 {[%emt 0:03:14]} 20. Rae1 {[%emt 0:00:26]} Re7 {[%emt 0:07:42]} 21. Qa4 {[%emt 0:05:13]} a6 {[%emt 0:08:32]} 22. Bg2 {[%emt 0:04:27]} Qb6 {[%emt 0:00:30]} 23. Qa3 {[%emt 0:00:30]} Ree8 {[%emt 0:00:30]} 24. b4 {[%emt 0:00:30]} Nd5 {[%emt 0:00:30]} 25. Qb3 {[%emt 0:00:30]} g6 {[%emt 0:00:30]} 26. a3 {[%emt 0:00:30]} Nf6 {[%emt 0:00:30] Weighted Error Value: White=0.05 (flawless) /Black=0.06 (flawless)} 1/2-1/2

[Event "FISCA Open 2022"]
[Site "Cap Aurora"]
[Date "2022.06.27"]
[Round "7.3"]
[White "Gilea, Lucian"]
[Black "Stegaroiu, Marcel-Florian"]
[Result "1-0"]
[ECO "A48"]
[WhiteElo "2277"]
[BlackElo "1917"]
[Annotator "TA"]
[PlyCount "153"]
[EventDate "2022.06.22"]
[EventType "swiss"]
[EventCountry "ROU"]
[SourceTitle "playchess.com"]
[Source "ChessBase"]
[SourceQuality "1"]
[TimeControl "5400+30"]

{[%evp 11,153,18,12,22,26,10,22,13,53,29,36,33,28,12,55,56,54,53,45,50,50,7,41,40,36,45,74,75,106,112,126,84,88,50,56,55,60,0,150,148,153,158,154,94,210,190,211,207,251,164,233,225,291,285,303,291,290,161,165,0,0,0,0,0,0,0,0,0,0,0,0,0,14,14,14,12,14,11,14,11,14,14,26,11,12,12,12,18,18,18,33,0,33,18,26,0,33,33,59,0,33,0,0,0,0,0,0,0,0,-33,-36,-27,-26,-33,-29,-38,-38,-31,-38,-65,0,0,0,0,8,8,682,668,595,8,8,8,29975,29966,29971,29972,29971,29971,29986,29987,29990,29991,29991,29992]} 1. d4 {[%emt 0:00:03]} Nf6 {[%emt 0:00:17]} 2. Nf3 {[%emt 0:00:05]} d6 {[%emt 0:00:26]} 3. Bf4 {[%emt 0:00:13]} g6 {[%emt 0:00:18]} 4. h3 {[%emt 0:00:09]} Bg7 {[%emt 0:00:07]} 5. e3 {[%emt 0:00:08]} c6 {[%emt 0:01:05]} 6. Bc4 {[%emt 0:04:45]} O-O {[%emt 0:04:07]} 7. O-O {[%emt 0:00:24]} Nbd7 {[%emt 0:00:56]} 8. Bh2 {[%emt 0:00:39]} Ne4 {[%emt 0:01:14]} 9. Nbd2 {[%emt 0:00:34] The position is equal.} Ndf6 {[%emt 0:01:27]} 10. c3 {[%emt 0:01:12]} a5 {[%emt 0:01:29]} 11. a4 {[%emt 0:01:57]} d5 {[%emt 0:03:49]} 12. Be2 {[%emt 0:04:07]} h6 {[%emt 0:05:09]} 13. Nb3 {[%emt 0:02:11]} Nd7 {[%emt 0:00:24]} 14. Bd3 {[%emt 0:02:10]} Nd6 {[%emt 0:02:52]} 15. Nbd2 {[%emt 0:01:59]} Nf6 {[%emt 0:04:15]} 16. Ne1 {[%emt 0:05:37][%cal Bf3e1,Be1d3,Bd3e5][%mdl 32]} Bf5 {[%emt 0:00:50]} 17. f3 {[%emt 0:00:30]} Bxd3 {[%emt 0:00:55]} 18. Nxd3 {[%emt 0:00:02]} Qc8 {[%emt 0:06:47]} 19. Qe2 {[%emt 0:01:59]} Nfe8 {[%emt 0:04:46]} 20. e4 {[%emt 0:03:31]} e6 {[%emt 0:00:45]} 21. Kh1 {[%emt 0:06:15]} b6 {[%emt 0:06:49]} 22. Ne5 {[%emt 0:05:53]} c5 {[%emt 0:04:19]} 23. Rac1 {[%emt 0:06:04]} Qb7 {[%emt 0:00:31]} 24. c4 {[%emt 0:10:00]} (24. b3 $14) 24... dxc4 {[%emt 0:05:23]} (24... cxd4 $11 25. cxd5 exd5) 25. dxc5 $16 {[%emt 0:02:38] White is more active.} (25. Ndxc4 $6 cxd4 26. Rfd1 (26. Nxg6 Nxc4 27. Nxf8 Ncd6 $11) 26... Rc8 $14) 25... bxc5 {[%emt 0:01:04]} 26. Ndxc4 {[%emt 0:00:26]} (26. Nexc4 Nxc4 27. Nxc4 Bd4 $16) 26... Nxc4 {[%emt 0:03:59]} 27. Qxc4 {[%emt 0:01:39]} (27. Nxc4 Bd4 $16) (27. Rxc4 $142 Qa6 28. Rd1 (28. Nd7 Nd6 $16)) 27... Bxe5 {[%emt 0:09:26]} (27... Nf6 $16) 28. Bxe5 $18 {[%emt 0:00:16]} Rc8 {[%emt 0:00:15]} 29. Rc2 {[%emt 0:06:25]} Nc7 {[%emt 0:01:43]} 30. Bc3 {[%emt 0:00:28]} (30. Qxc5 {[#]} Nd5 $1 31. exd5 (31. Qf2 Rxc2 32. Qxc2 Ne3 $15) 31... Rxc5 32. Rxc5 Qb4 $11) 30... Qb6 {[%emt 0:00:50]} (30... Na6 $142 31. Rd2 (31. Bxa5 Nb4 $16) 31... Nb4) 31. Rd1 {[%emt 0:01:24]} Rcd8 {[%emt 0:04:58]} 32. Rcd2 {[%emt 0:01:11]} Rxd2 {[%emt 0:00:12]} 33. Rxd2 {[%emt 0:00:01]} ({Inferior is} 33. Bxd2 Rd8 $11) 33... Ra8 {[%emt 0:03:01]} 34. Rd7 {[%emt 0:05:37]} (34. Qe2 $142) 34... Qc6 {[%emt 0:01:20]} 35. Qd3 {[%emt 0:00:10]} (35. Rd1 $18) 35... Nd5 $1 $11 {[%emt 0:02:01]} 36. Qb5 {[%emt 0:10:01]} Qxb5 {[%emt 0:00:20]} 37. axb5 {[%emt 0:00:02]} Nxc3 {[%emt 0:00:29]} 38. bxc3 {[%emt 0:00:02][%mdl 4096] Endgame KR-KR} a4 {[%emt 0:09:24]} 39. b6 {[%emt 0:00:17]} Rb8 {[%emt 0:00:21]} 40. Ra7 {[%emt 0:00:34]} Rxb6 {[%emt 0:00:12]} 41. Rxa4 {[%emt 0:00:03]} Kf8 {[%emt 0:04:22]} 42. Ra5 {[%emt 0:00:19]} Rc6 {[%emt 0:00:12]} 43. Ra7 {[%emt 0:00:15]} e5 {[%emt 0:01:11]} 44. c4 {[%emt 0:01:27]} Kg7 {[%emt 0:00:10]} 45. Kg1 {[%emt 0:00:33]} Kf6 {[%emt 0:00:03]} 46. Kf2 {[%emt 0:00:10]} Ke6 {[%emt 0:00:02]} 47. h4 {[%emt 0:01:10]} Kf6 {[%emt 0:03:09]} 48. g4 {[%emt 0:00:55]} g5 {[%emt 0:00:27]} 49. h5 {[%emt 0:01:07]} Ke6 {[%emt 0:00:54]} 50. Ke3 {[%emt 0:00:10]} Kf6 {[%emt 0:01:16]} 51. Rd7 {[%emt 0:03:04]} Ke6 {[%emt 0:00:46]} 52. Rd5 {[%emt 0:00:05]} Rc8 {[%emt 0:00:30]} 53. Ke2 {[%emt 0:00:13]} Rc7 {[%emt 0:00:07]} 54. Rd8 {[%emt 0:00:06]} Rc6 {[%emt 0:00:15]} 55. Rd5 {[%emt 0:01:03]} ({White should play} 55. Re8+ $14 Kd6 56. Ra8) 55... Rc8 {[%emt 0:00:07]} 56. Kd3 {[%emt 0:00:09]} Rc6 {[%emt 0:01:32]} 57. Kc2 {[%emt 0:00:07]} Rc8 {[%emt 0:00:12]} 58. Kc3 {[%emt 0:00:54]} Rc6 {[%emt 0:02:10]} 59. Rd8 {[%emt 0:01:03]} Ke7 {[%emt 0:00:16]} 60. Ra8 {[%emt 0:00:10]} Rf6 $1 {[%emt 0:00:26]} 61. Ra7+ {[%emt 0:00:53]} Kf8 {[%emt 0:00:16]} 62. Rc7 {[%emt 0:00:06]} Rxf3+ {[%emt 0:00:05]} 63. Kd2 {[%emt 0:00:04]} Rf4 {[%emt 0:00:13][%csl LRe4,LRg4]} 64. Ke3 {[%emt 0:00:08]} Rxg4 {[%emt 0:00:48] White must now prevent ...Rh4.} 65. Rxc5 {[%emt 0:00:03]} f5 {[%emt 0:02:32]} ({Better is} 65... Rh4 $15 66. Rxe5 Rxh5) 66. exf5 {[%emt 0:00:31]} Kf7 {[%emt 0:00:10]} 67. Rc6 {[%emt 0:01:02]} Rf4 {[%emt 0:00:23]} 68. c5 {[%emt 0:00:10][%cal Bc4c5,Bc5c6,Bc6c7][%mdl 32]} g4 $2 {[%emt 0:01:36][%mdl 8192]} (68... Rxf5 $11 69. Rxh6 Rf4) 69. Rxh6 $18 {[%emt 0:00:46] Threatens to win with c6.} Rxf5 {[%emt 0:00:06]} 70. Ke4 $2 {[%emt 0:01:32]} ({White must play} 70. c6 $18 {White threatens c7 and mate.} Rf3+ 71. Ke4) 70... Rg5 $1 $11 {[%emt 0:00:59]} 71. c6 {[%emt 0:03:46] c7 would kill now.} Ke7 $2 {[%emt 0:01:30][%mdl 8192] [#]} (71... g3 $11 72. c7 Rg8) 72. Rh7+ {[%emt 0:04:58] White mates.} Kd6 {[%emt 0:00:33]} 73. c7 {[%emt 0:00:06]} Rg8 {[%emt 0:00:05]} 74. h6 {[%emt 0:00:11][%cal Bh5h6,Bh6h7][%mdl 32]} Kc6 {[%emt 0:00:58]} 75. Rg7 {[%emt 0:00:29]} Rh8 {[%emt 0:00:07]} 76. h7 {[%emt 0:00:11]} g3 {[%emt 0:00:18]} 77. Rg8 {[%emt 0:00:28] Weighted Error Value: White=0.18 (very precise) /Black=0.18 (very precise)} 1-0

[Event "FISCA Open 2022"]
[Site "Cap Aurora"]
[Date "2022.06.27"]
[Round "7.5"]
[White "Mintau, Andrei-Catalin"]
[Black "Girmacea, Bogdan"]
[Result "1/2-1/2"]
[ECO "C07"]
[WhiteElo "2130"]
[BlackElo "2133"]
[Annotator "NA RC"]
[PlyCount "63"]
[EventDate "2022.06.22"]
[EventType "swiss"]
[EventCountry "ROU"]
[SourceTitle "playchess.com"]
[Source "ChessBase"]
[SourceQuality "1"]
[TimeControl "5400+30"]

1. e4 {[%emt 0:00:03]} e6 {[%emt 0:00:24]} 2. d4 {[%emt 0:00:03]} d5 {[%emt 0:00:06]} 3. Nd2 {[%emt 0:00:02]} c5 {[%emt 0:00:52]} 4. Ngf3 {[%emt 0:00:05]} cxd4 {[%emt 0:05:13]} 5. Nxd4 {[%emt 0:00:08]} Nf6 {[%emt 0:00:27]} 6. exd5 {[%emt 0:00:13]} Nxd5 {[%emt 0:00:21]} 7. N2f3 {[%emt 0:00:28]} a6 $11 {[%emt 0:12:34]} 8. Be2 {[%emt 0:13:59]} Bb4+ {[%emt 0:04:32]} 9. Bd2 {[%emt 0:00:12]} Bd6 {[%emt 0:00:39]} 10. O-O {[%emt 0:10:16]} Qc7 {[%emt 0:05:53]} 11. c4 {[%emt 0:02:56]} Nf4 {[%emt 0:03:04]} 12. Rc1 {[%emt 0:06:44]} O-O {[%emt 0:04:59]} 13. c5 {[%emt 0:03:40]} Nxe2+ {[%emt 0:00:31]} 14. Nxe2 {[%emt 0:00:11]} Be7 {[%emt 0:02:13]} 15. Bf4 {[%emt 0:02:31]} Qa5 {[%emt 0:05:57]} 16. Qc2 {[%emt 0:20:38]} Bd7 {[%emt 0:17:39]} 17. Rfd1 {[%emt 0:02:45]} Bb5 {[%emt 0:11:14]} 18. Ned4 {[%emt 0:01:51]} Nc6 {[%emt 0:02:28]} 19. b3 {[%emt 0:19:23]} Rfd8 {[%emt 0:11:14]} 20. a4 {[%emt 0:04:26]} Nxd4 {[%emt 0:00:18]} 21. Nxd4 {[%emt 0:00:07]} Be8 {[%emt 0:02:38]} 22. Qc4 {[%emt 0:03:38]} Rd5 {[%emt 0:03:25]} 23. Nxe6 {[%emt 0:03:12]} Rxd1+ {[%emt 0:02:36]} 24. Rxd1 {[%emt 0:00:04]} fxe6 {[%emt 0:00:08]} 25. Qxe6+ {[%emt 0:00:11]} Kf8 {[%emt 0:00:08]} 26. Rd5 {[%emt 0:00:42]} Bf7 {[%emt 0:01:47]} 27. Rf5 {[%emt 0:00:08]} Bf6 {[%emt 0:00:07]} 28. Rxf6 {[%emt 0:00:14]} gxf6 {[%emt 0:00:54]} 29. Bh6+ {[%emt 0:00:07]} Kg8 {[%emt 0:00:11]} 30. Qg4+ {[%emt 0:00:10]} Bg6 {[%emt 0:00:05]} 31. Qe6+ {[%emt 0:00:09]} Bf7 {[%emt 0:00:06]} 32. Qg4+ {[%emt 0:07:14]} 1/2-1/2

[Event "FISCA Open 2022"]
[Site "Cap Aurora"]
[Date "2022.06.27"]
[Round "7.7"]
[White "Trifoi, Mihaela-Ioana"]
[Black "Mitev, Mitko"]
[Result "1-0"]
[ECO "B01"]
[WhiteElo "1949"]
[BlackElo "1781"]
[Annotator "NA RC"]
[PlyCount "70"]
[EventDate "2022.06.22"]
[EventType "swiss"]
[EventCountry "ROU"]
[SourceTitle "playchess.com"]
[Source "ChessBase"]
[SourceQuality "1"]
[TimeControl "5400+30"]

1. e4 {[%emt 0:01:46]} d5 {[%emt 0:00:11]} 2. exd5 {[%emt 0:00:07]} Qxd5 {[%emt 1:31:19]} 3. Nc3 {[%emt 1:30:07]} Qd8 {[%emt 0:00:00]} 4. d4 {[%emt 0:00:00]} Nf6 {[%emt 0:00:00]} 5. Nf3 {[%emt 0:00:00]} c6 {[%emt 0:00:00]} 6. Be3 {[%emt 0:00:00]} Bg4 {[%emt 0:00:00]} (6... Bf5 $11) 7. h3 {[%emt 0:00:00]} Bh5 {[%emt 0:00:00]} 8. g4 {[%emt 0:00:00]} Bg6 {[%emt 0:03:00]} 9. Ne5 {[%emt 0:03:00]} Nbd7 {[%emt 0:00:00]} 10. Nxg6 {[%emt 0:00:00]} hxg6 {[%emt 0:00:00]} 11. Qf3 {[%emt 0:00:00]} e6 {[%emt 0:00:00]} 12. O-O-O {[%emt 0:00:00]} Bd6 {[%emt 0:00:00]} 13. Kb1 {[%emt 0:00:00]} Qc7 {[%emt 0:00:00]} 14. Bg2 {[%emt 0:00:00]} Nb6 $14 {[%emt 0:00:00]} 15. g5 {[%emt 0:00:00]} Nfd5 {[%emt 0:00:00]} 16. Ne4 {[%emt 0:00:00]} Bf4 {[%emt 0:00:00]} 17. Bf1 {[%emt 0:00:00]} Rh4 {[%emt 0:00:00]} 18. c4 {[%emt 0:00:00]} Ne7 {[%emt 0:00:00]} 19. Rg1 {[%emt 0:00:00]} Bxe3 {[%emt 0:00:00]} 20. fxe3 {[%emt 0:00:00]} Nf5 {[%emt 0:00:00]} 21. Rg4 {[%emt 0:00:00]} O-O-O {[%emt 0:00:00]} 22. c5 {[%emt 0:00:00]} Nd5 {[%emt 0:02:01]} 23. Nd6+ {[%emt 0:00:00]} Kb8 {[%emt 0:00:37]} 24. Rxh4 {[%emt 0:00:00]} Nxh4 {[%emt 0:00:30]} 25. Qxf7 {[%emt 0:00:00]} Qxf7 {[%emt 0:00:35]} 26. Nxf7 {[%emt 0:00:00]} Nxe3 {[%emt 0:00:45]} 27. Nxd8 {[%emt 0:00:00]} Nxd1 {[%emt 0:00:06]} 28. Nxe6 {[%emt 0:00:00]} Ne3 {[%emt 0:00:22]} 29. Bd3 {[%emt 0:00:00]} Nhf5 {[%emt 0:00:19]} 30. Kc1 {[%emt 0:00:00]} Kc8 {[%emt 0:00:15]} 31. Kd2 {[%emt 0:00:00]} Kd7 {[%emt 0:04:40]} 32. Nxg7 {[%emt 0:00:00]} Ke7 {[%emt 0:00:39]} 33. Nxf5+ {[%emt 0:00:00]} Nxf5 {[%emt 0:00:02]} 34. Bxf5 {[%emt 0:00:00]} gxf5 {[%emt 0:00:01]} 35. Ke3 {[%emt 0:00:00]} Kf7 {[%emt 0:02:38]} 1-0

[Event "FISCA Open 2022"]
[Site "Cap Aurora"]
[Date "2022.06.27"]
[Round "7.8"]
[White "Miron, Iurii"]
[Black "Negrean, Andrei"]
[Result "1-0"]
[ECO "E42"]
[WhiteElo "1769"]
[BlackElo "1846"]
[Annotator "NA RC"]
[PlyCount "147"]
[EventDate "2022.06.22"]
[EventType "swiss"]
[EventCountry "ROU"]
[SourceTitle "playchess.com"]
[Source "ChessBase"]
[SourceQuality "1"]
[TimeControl "5400+30"]

1. d4 {[%emt 0:12:23]} e6 {[%emt 0:00:13]} 2. c4 {[%emt 0:00:18]} Bb4+ {[%emt 0:00:21]} 3. Nc3 {[%emt 0:00:52]} c5 {[%emt 0:00:30]} 4. e3 {[%emt 0:07:51]} Nf6 {[%emt 0:04:45]} 5. Nge2 {[%emt 0:02:24]} O-O $14 {[%emt 0:02:44]} 6. dxc5 {[%emt 0:02:28]} Bxc5 {[%emt 0:07:54]} 7. g3 {[%emt 0:02:21]} Qc7 {[%emt 0:11:36]} 8. Bg2 {[%emt 0:11:22]} Bb4 {[%emt 0:05:42]} 9. Qb3 {[%emt 0:03:13]} Nc6 {[%emt 0:04:43]} 10. O-O {[%emt 0:00:32]} Be7 {[%emt 0:10:11]} 11. Qd1 {[%emt 0:13:31]} a6 {[%emt 0:05:07]} 12. b3 {[%emt 0:04:54]} b6 {[%emt 0:03:43]} 13. Bb2 {[%emt 0:02:35]} Bb7 {[%emt 0:00:38]} 14. Nf4 {[%emt 0:09:18]} Rac8 {[%emt 0:09:18]} 15. Rc1 {[%emt 0:00:43]} Qb8 {[%emt 0:02:08]} 16. Ne4 {[%emt 0:07:11]} Nxe4 {[%emt 0:06:06]} 17. Bxe4 {[%emt 0:00:04]} g6 {[%emt 0:09:12]} 18. Qd3 {[%emt 0:08:13]} f5 {[%emt 0:08:46]} 19. Bg2 {[%emt 0:04:05]} Rcd8 {[%emt 0:02:55]} 20. Nd5 {[%emt 0:02:11]} Kf7 {[%emt 0:02:47]} 21. Nxe7 {[%emt 0:01:54]} Nxe7 {[%emt 0:00:09]} 22. Bxb7 {[%emt 0:01:20]} Qxb7 {[%emt 0:00:03]} 23. Qd6 {[%emt 0:01:09]} Qe4 {[%emt 0:01:48]} 24. Rfd1 {[%emt 0:00:53]} Nc6 {[%emt 0:00:35]} 25. Qc7 {[%emt 0:00:30]} Ke8 {[%emt 0:00:25]} 26. Qxb6 {[%emt 0:00:38]} h5 {[%emt 0:00:33]} 27. Qxa6 {[%emt 0:00:33]} h4 {[%emt 0:00:20]} 28. c5 {[%emt 0:00:23]} g5 {[%emt 0:00:41]} 29. Qe2 {[%emt 0:00:12]} g4 {[%emt 0:00:36]} 30. Rc4 {[%emt 0:00:09]} Qf3 {[%emt 0:00:23]} 31. Qxf3 {[%emt 0:00:02]} gxf3 {[%emt 0:00:00]} 32. Rxh4 {[%emt 0:00:47]} e5 {[%emt 0:00:53]} 33. Rh7 {[%emt 0:00:51]} Rf7 {[%emt 0:00:30]} 34. Rxf7 {[%emt 0:00:46]} Kxf7 {[%emt 0:00:01]} 35. Bc3 {[%emt 0:00:45]} e4 {[%emt 0:00:37]} 36. a3 {[%emt 0:00:36]} Ne7 {[%emt 0:00:21]} 37. Rd6 {[%emt 0:00:28]} Ra8 {[%emt 0:00:46]} 38. a4 {[%emt 0:00:22]} Ra7 {[%emt 0:00:35]} 39. h4 {[%emt 0:00:31]} Ke8 {[%emt 0:00:49]} 40. h5 {[%emt 0:00:25]} Kf7 {[%emt 0:00:32]} 41. Rb6 {[%emt 0:00:43]} Nd5 {[%emt 0:00:26]} 42. Bd4 {[%emt 0:00:13]} Nxb6 {[%emt 0:00:26]} 43. cxb6 {[%emt 0:00:03]} Ra8 {[%emt 0:00:19]} 44. Be5 {[%emt 0:00:22]} Rc8 {[%emt 0:00:32]} 45. b7 {[%emt 0:00:27]} Rc1+ {[%emt 0:00:06]} 46. Kh2 {[%emt 0:00:04]} Rf1 {[%emt 0:00:22]} 47. b8=Q {[%emt 0:00:27]} Rxf2+ {[%emt 0:00:07]} 48. Kh3 {[%emt 0:00:49]} Rf1 {[%emt 0:00:17]} 49. g4 {[%emt 0:00:52]} fxg4+ {[%emt 0:01:51]} 50. Kg3 {[%emt 0:00:29]} Rg1+ {[%emt 0:00:28]} 51. Kf2 {[%emt 0:00:08]} Rg2+ {[%emt 0:00:25]} 52. Kf1 {[%emt 0:00:01]} Rd2 {[%emt 0:00:27]} 53. Qb4 {[%emt 0:00:25]} Rd3 {[%emt 0:00:35]} 54. Qc4+ {[%emt 0:00:55]} d5 {[%emt 0:00:17]} 55. Qc7+ {[%emt 0:01:36]} Ke6 {[%emt 0:00:22]} 56. Qd6+ {[%emt 0:00:32]} Kf7 {[%emt 0:00:08]} 57. Qg6+ {[%emt 0:00:26]} Ke7 {[%emt 0:00:05]} 58. Qxg4 {[%emt 0:00:34]} Rd1+ {[%emt 0:00:08]} 59. Kf2 {[%emt 0:00:01]} Rd2+ {[%emt 0:00:07]} 60. Ke1 {[%emt 0:00:04]} f2+ {[%emt 0:00:13]} 61. Kf1 {[%emt 0:00:23]} Rd3 {[%emt 0:00:35]} 62. Kxf2 {[%emt 0:00:14]} Rd2+ {[%emt 0:00:06]} 63. Qe2 {[%emt 0:00:10]} Rxe2+ {[%emt 0:00:10]} 64. Kxe2 {[%emt 0:00:01]} Kf7 {[%emt 0:00:11]} 65. a5 {[%emt 0:00:05]} Ke6 {[%emt 0:00:04]} 66. Bd4 {[%emt 0:00:13]} Kf5 {[%emt 0:00:05]} 67. a6 {[%emt 0:00:11]} Kg4 {[%emt 0:00:05]} 68. a7 {[%emt 0:00:12]} Kg5 {[%emt 0:00:15]} 69. a8=Q {[%emt 0:00:08]} Kf5 {[%emt 0:00:07]} 70. Qc8+ {[%emt 0:00:32]} Kg5 {[%emt 0:00:09]} 71. Qg8+ {[%emt 0:00:09]} Kh4 {[%emt 0:00:06]} 72. h6 {[%emt 0:00:12]} Kh5 {[%emt 0:00:04]} 73. h7 {[%emt 0:00:07]} Kh6 {[%emt 0:00:03]} 74. h8=Q# {[%emt 0:00:08]} 1-0